[Event "GER-ch Women Open 2019"]
[Site "Bodenmais"]
[Date "2019.07.27"]
[Round "1.1"]
[White "Weinmann, Helene"]
[Black "Von Herman, Brigitte"]
[Result "0-1"]
[ECO "A46"]
[WhiteElo "1520"]
[BlackElo "2062"]
[Annotator "NA RC"]
[PlyCount "100"]
[EventDate "2019.07.27"]
[EventType "swiss"]
[EventCountry "GER"]
[SourceTitle "playchess.com"]
[Source "ChessBase"]
[SourceQuality "1"]
[TimeControl "40/5400+30:900+30"]

1. d4 {[%emt 0:00:00]} Nf6 {[%emt 0:00:00]} 2. Nf3 {[%emt 0:00:00]} e6 {[%emt 0:00:00]} 3. Nbd2 {[%emt 0:00:34]} d5 {[%emt 0:02:44]} 4. e3 {[%emt 0:00:45]} Be7 {[%emt 0:02:42]} 5. Bd3 {[%emt 0:00:23]} c5 {[%emt 0:02:11]} 6. c3 {[%emt 0:00:19]} Nbd7 {[%emt 0:01:57]} 7. O-O {[%emt 0:00:21]} Qc7 {[%emt 0:02:38]} 8. Bc2 {[%emt 0:01:14]} O-O {[%emt 0:03:25]} 9. Re1 {[%emt 0:01:17]} Re8 {[%emt 0:07:57]} 10. e4 {[%emt 0:01:09]} dxe4 {[%emt 0:04:31]} 11. Nxe4 {[%emt 0:00:18]} b6 {[%emt 0:05:50]} 12. dxc5 {[%emt 0:02:29]} Nxc5 {[%emt 0:02:12]} 13. Nxc5 {[%emt 0:02:49]} Qxc5 {[%emt 0:02:48]} 14. Be3 {[%emt 0:01:30]} Qc7 {[%emt 0:07:03]} 15. Bd4 {[%emt 0:02:21]} Bb7 {[%emt 0:03:30]} 16. Qe2 {[%emt 0:01:10]} Qf4 {[%emt 0:04:53]} 17. Bxf6 {[%emt 0:02:26]} Bxf6 {[%emt 0:04:10]} 18. Be4 {[%emt 0:00:18]} Bxe4 {[%emt 0:02:32]} 19. Qxe4 {[%emt 0:00:13]} Qxe4 {[%emt 0:01:20]} 20. Rxe4 {[%emt 0:00:13]} Red8 {[%emt 0:00:05]} 21. Kf1 {[%emt 0:01:07]} Rd5 {[%emt 0:00:27]} 22. Re2 {[%emt 0:01:03]} Rc8 {[%emt 0:03:56]} 23. Ke1 {[%emt 0:01:22]} Rxc3 {[%emt 0:01:24]} 24. Rd1 {[%emt 0:02:26]} Rxd1+ {[%emt 0:02:49]} 25. Kxd1 {[%emt 0:00:12]} Rc7 {[%emt 0:00:23]} 26. Rc2 {[%emt 0:00:23]} Rd7+ {[%emt 0:00:59]} 27. Ke2 {[%emt 0:00:35]} Kf8 {[%emt 0:00:11]} 28. Rd2 {[%emt 0:01:50]} Rxd2+ {[%emt 0:00:28]} 29. Nxd2 Bxb2 {[%emt 0:00:09]} 30. Kd3 {[%emt 0:00:42]} Be5 {[%emt 0:01:42]} 31. h3 {[%emt 0:00:27]} Ke7 {[%emt 0:01:03]} 32. Ke4 {[%emt 0:00:58]} Bc7 {[%emt 0:00:32]} 33. g4 {[%emt 0:01:37]} b5 {[%emt 0:01:52]} 34. f3 {[%emt 0:01:55]} Kd6 {[%emt 0:00:59]} 35. Nb3 {[%emt 0:01:50]} Bd8 {[%emt 0:02:04]} 36. f4 {[%emt 0:00:44]} h6 {[%emt 0:00:20]} 37. Kd4 {[%emt 0:02:07]} Bb6+ {[%emt 0:00:48]} 38. Ke4 {[%emt 0:00:30]} a5 {[%emt 0:00:52]} 39. Nc1 {[%emt 0:01:45]} a4 {[%emt 0:01:47]} 40. Nd3 {[%emt 0:00:26]} f6 {[%emt 0:01:41]} 41. h4 {[%emt 0:16:10]} Ba5 {[%emt 0:17:14]} 42. h5 {[%emt 0:00:30]} Bd2 {[%emt 0:00:51]} 43. Kd4 {[%emt 0:01:20]} Ba5 {[%emt 0:00:20]} 44. Ke4 {[%emt 0:01:21]} Bc3 {[%emt 0:00:36]} 45. Nc1 {[%emt 0:01:56]} Kc5 {[%emt 0:01:06]} 46. Kd3 {[%emt 0:00:47]} b4 {[%emt 0:05:30]} 47. Ne2 {[%emt 0:02:30]} Bb2 {[%emt 0:01:50]} 48. Ng3 {[%emt 0:04:15]} Kd5 {[%emt 0:03:43]} 49. Ne2 {[%emt 0:01:55]} a3 {[%emt 0:03:02]} 50. Ng1 {[%emt 0:01:52]} b3 {[%emt 0:00:37]} 0-1

[Event "GER-ch Women Open 2019"]
[Site "Bodenmais"]
[Date "2019.07.27"]
[Round "1.2"]
[White "Sewald, Kathrin"]
[Black "Peglau, Dora"]
[Result "1-0"]
[ECO "B10"]
[WhiteElo "2016"]
[BlackElo "1300"]
[Annotator "NA RC"]
[PlyCount "59"]
[EventDate "2019.07.27"]
[EventType "swiss"]
[EventCountry "GER"]
[SourceTitle "playchess.com"]
[Source "ChessBase"]
[SourceQuality "1"]
[TimeControl "40/5400+30:900+30"]

1. e4 {[%emt 0:00:00]} c6 {[%emt 0:10:50]} 2. d3 {[%emt 0:00:00]} d5 {[%emt 0:00:07]} 3. Nd2 {[%emt 0:00:00]} dxe4 {[%emt 0:01:12]} 4. dxe4 {[%emt 0:00:00]} e5 {[%emt 0:00:24]} 5. Ngf3 {[%emt 0:00:00]} Nd7 {[%emt 0:01:47]} 6. Bc4 {[%emt 0:00:41]} Bc5 {[%emt 0:01:05]} 7. O-O {[%emt 0:00:29]} Ngf6 {[%emt 0:00:31]} 8. Qe2 {[%emt 0:05:45]} O-O {[%emt 0:01:38]} 9. h3 {[%emt 0:01:22]} Qc7 {[%emt 0:01:39]} 10. a4 {[%emt 0:04:50]} Rd8 {[%emt 0:04:31]} 11. Ng5 {[%emt 0:05:01]} Rf8 {[%emt 0:01:02]} 12. Re1 {[%emt 0:04:25]} h6 {[%emt 0:00:59]} 13. Ngf3 {[%emt 0:00:06]} Rd8 {[%emt 0:02:39]} 14. Nf1 {[%emt 0:02:32]} Nf8 {[%emt 0:04:29]} 15. Nh4 {[%emt 0:06:34]} Ne6 {[%emt 0:02:04]} 16. c3 {[%emt 0:04:26]} Bb6 {[%emt 0:03:24]} 17. Qf3 {[%emt 0:06:40]} Nf4 {[%emt 0:08:04]} 18. Ng3 {[%emt 0:08:59]} Be6 {[%emt 0:03:15]} 19. Bf1 {[%emt 0:05:52]} Rd7 {[%emt 0:19:52]} 20. Ngf5 {[%emt 0:06:46]} Rad8 {[%emt 0:08:18]} 21. Qg3 {[%emt 0:03:19]} Bxf5 {[%emt 0:04:05]} 22. Nxf5 {[%emt 0:00:20]} Ng6 {[%emt 0:00:49]} 23. Bc4 {[%emt 0:02:05]} Kh7 {[%emt 0:05:17]} 24. Qf3 {[%emt 0:13:04]} Kg8 {[%emt 0:04:00]} 25. Nxh6+ {[%emt 0:00:37]} Kf8 {[%emt 0:00:50]} 26. Bg5 {[%emt 0:01:18]} Qd6 {[%emt 0:03:01]} 27. a5 {[%emt 0:03:23]} Bc7 {[%emt 0:00:32]} 28. Nf5 {[%emt 0:00:19]} Qc5 {[%emt 0:01:06]} 29. b3 {[%emt 0:00:20]} Bxa5 {[%emt 0:01:00]} 30. Be3 1-0

[Event "GER-ch Women Open 2019"]
[Site "Bodenmais"]
[Date "2019.07.27"]
[Round "1.3"]
[White "Peglau, Adelheid"]
[Black "Ries, Jutta"]
[Result "0-1"]
[ECO "B02"]
[WhiteElo "1199"]
[BlackElo "1983"]
[Annotator "NA RC"]
[PlyCount "81"]
[EventDate "2019.07.27"]
[EventType "swiss"]
[EventCountry "GER"]
[SourceTitle "playchess.com"]
[Source "ChessBase"]
[SourceQuality "1"]
[TimeControl "40/5400+30:900+30"]

1. e4 {[%emt 0:10:35]} Nf6 {[%emt 0:00:00]} 2. Nc3 {[%emt 0:00:56]} d5 {[%emt 0:00:00]} 3. exd5 {[%emt 0:00:47]} Nxd5 {[%emt 0:00:04]} 4. Nxd5 {[%emt 0:02:53]} Qxd5 {[%emt 0:00:50]} 5. Nf3 {[%emt 0:03:44]} Bf5 {[%emt 0:00:59]} 6. d4 {[%emt 0:03:44]} c6 {[%emt 0:06:49]} 7. c4 {[%emt 0:04:40]} Qe6+ {[%emt 0:04:58]} 8. Be3 {[%emt 0:04:30]} h6 {[%emt 0:04:36]} 9. Bd3 {[%emt 0:01:05]} Bxd3 {[%emt 0:03:55]} 10. Qxd3 {[%emt 0:00:04]} Na6 {[%emt 0:04:14]} 11. O-O {[%emt 0:06:23]} Nc7 {[%emt 0:21:38]} 12. Rfe1 {[%emt 0:04:23]} Rd8 {[%emt 0:07:13]} 13. Rad1 {[%emt 0:08:04]} Qc8 {[%emt 0:01:46]} 14. Bf4 {[%emt 0:06:22]} e6 {[%emt 0:11:40]} 15. Bxc7 {[%emt 0:04:57]} Qxc7 {[%emt 0:00:23]} 16. Ne5 {[%emt 0:15:11]} Bd6 {[%emt 0:05:17]} 17. Qg3 {[%emt 0:02:01]} O-O {[%emt 0:04:18]} 18. c5 {[%emt 0:02:35]} Bxe5 {[%emt 0:01:25]} 19. Qxe5 {[%emt 0:01:50]} Qa5 {[%emt 0:12:15]} 20. a3 {[%emt 0:01:17]} Rd5 {[%emt 0:00:07]} 21. Qe3 {[%emt 0:00:40]} Rfd8 {[%emt 0:00:41]} 22. Qc3 {[%emt 0:00:29]} Qxc3 {[%emt 0:02:44]} 23. bxc3 {[%emt 0:00:15]} e5 {[%emt 0:00:18]} 24. Re3 {[%emt 0:00:51]} exd4 {[%emt 0:02:09]} 25. cxd4 {[%emt 0:01:11]} Rxd4 {[%emt 0:01:26]} 26. Rxd4 {[%emt 0:01:23]} Rxd4 {[%emt 0:00:05]} 27. Kf1 {[%emt 0:00:21]} Kf8 {[%emt 0:00:31]} 28. Ke2 {[%emt 0:00:08]} Rc4 {[%emt 0:00:55]} 29. Rb3 {[%emt 0:00:21]} Rxc5 {[%emt 0:00:44]} 30. Rxb7 {[%emt 0:00:12]} Ra5 {[%emt 0:00:27]} 31. Rb3 {[%emt 0:00:22]} Ke7 {[%emt 0:00:18]} 32. Kd3 {[%emt 0:00:23]} Kd6 {[%emt 0:00:32]} 33. Kc4 {[%emt 0:00:44]} Ra4+ {[%emt 0:00:46]} 34. Kc3 {[%emt 0:00:25]} Rf4 {[%emt 0:01:50]} 35. f3 {[%emt 0:00:49]} a5 {[%emt 0:00:21]} 36. Rb7 {[%emt 0:01:12]} Kc5 {[%emt 0:00:06]} 37. Kb3 {[%emt 0:04:14]} g5 {[%emt 0:00:31]} 38. a4 {[%emt 0:01:06]} h5 {[%emt 0:00:48]} 39. Rb8 {[%emt 0:03:18]} Rb4+ {[%emt 0:01:08]} 40. Kc3 {[%emt 0:01:29]} Rxb8 {[%emt 0:00:04]} 41. Kd3 {[%emt 0:15:14]} 0-1

[Event "GER-ch Women Open 2019"]
[Site "Bodenmais"]
[Date "2019.07.27"]
[Round "1.4"]
[White "Just, Anita"]
[Black "Wolff, Beate"]
[Result "1-0"]
[ECO "B19"]
[WhiteElo "1875"]
[BlackElo "1238"]
[Annotator "NA RC"]
[PlyCount "96"]
[EventDate "2019.07.27"]
[EventType "swiss"]
[EventCountry "GER"]
[SourceTitle "playchess.com"]
[Source "ChessBase"]
[SourceQuality "1"]
[TimeControl "40/5400+30:900+30"]

1. e4 {[%emt 0:00:00]} c6 {[%emt 0:00:00]} 2. d4 {[%emt 0:00:00]} d5 {[%emt 0:00:00]} 3. Nc3 {[%emt 0:00:00]} dxe4 {[%emt 0:00:00]} 4. Nxe4 {[%emt 0:00:00]} Bf5 {[%emt 0:00:11]} 5. Ng3 {[%emt 0:00:05]} Bg6 {[%emt 0:00:15]} 6. h4 {[%emt 0:00:25]} h6 {[%emt 0:00:20]} 7. Nf3 {[%emt 0:00:17]} Nd7 {[%emt 0:00:30]} 8. h5 {[%emt 0:00:23]} Bh7 {[%emt 0:00:29]} 9. Bd3 {[%emt 0:00:21]} Bxd3 {[%emt 0:00:33]} 10. Qxd3 {[%emt 0:00:06]} e6 {[%emt 0:00:50]} 11. Bf4 {[%emt 0:00:29]} Ngf6 {[%emt 0:02:02]} 12. O-O-O {[%emt 0:04:41]} Be7 {[%emt 0:02:49]} 13. Kb1 {[%emt 0:06:25]} O-O {[%emt 0:00:28]} 14. Qe2 {[%emt 0:05:10]} Qb6 {[%emt 0:01:59]} 15. c4 {[%emt 0:01:33]} Rfe8 {[%emt 0:13:51]} 16. Ne5 {[%emt 0:04:45]} c5 {[%emt 0:13:23]} 17. Nxd7 {[%emt 0:10:03]} Nxd7 {[%emt 0:01:31]} 18. dxc5 {[%emt 0:10:47]} Nxc5 {[%emt 0:03:40]} 19. Be5 {[%emt 0:03:25]} a5 {[%emt 0:09:43]} 20. Bd4 {[%emt 0:04:22]} Qc6 {[%emt 0:07:06]} 21. Qg4 {[%emt 0:04:27]} Bf8 {[%emt 0:03:44]} 22. Be3 {[%emt 0:13:20]} Kh7 {[%emt 0:09:12]} 23. Ne2 {[%emt 0:01:57]} Qe4+ {[%emt 0:00:45]} 24. Qxe4+ {[%emt 0:00:09]} Nxe4 {[%emt 0:00:15]} 25. Rd7 {[%emt 0:01:02]} Re7 {[%emt 0:01:35]} 26. Rhd1 {[%emt 0:00:44]} f6 {[%emt 0:03:44]} 27. Rxe7 {[%emt 0:04:46]} Bxe7 {[%emt 0:00:57]} 28. Rd7 {[%emt 0:00:27]} Bc5 {[%emt 0:00:23]} 29. Bxc5 {[%emt 0:04:04]} Nxc5 {[%emt 0:00:22]} 30. Rc7 {[%emt 0:00:34]} b6 {[%emt 0:01:35]} 31. Rc6 {[%emt 0:01:15]} Rd8 {[%emt 0:03:15]} 32. Nf4 {[%emt 0:06:20]} e5 {[%emt 0:06:03]} 33. Nd5 {[%emt 0:02:19]} Ne4 {[%emt 0:01:07]} 34. f3 {[%emt 0:03:48]} Rd6 {[%emt 0:04:39]} 35. Rxd6 {[%emt 0:01:40]} Nxd6 {[%emt 0:00:07]} 36. Nxb6 {[%emt 0:00:05]} Nb7 {[%emt 0:03:00]} 37. Kc2 {[%emt 0:01:46]} Kg8 {[%emt 0:01:00]} 38. a3 {[%emt 0:01:11]} Kf7 {[%emt 0:01:12]} 39. b4 {[%emt 0:00:45]} Ke6 {[%emt 0:01:19]} 40. Kd3 {[%emt 0:01:16]} Kd6 {[%emt 0:00:27]} 41. c5+ {[%emt 0:17:30]} Kc6 {[%emt 0:16:47]} 42. Kc4 {[%emt 0:01:15]} axb4 {[%emt 0:03:14]} 43. axb4 {[%emt 0:00:16]} f5 {[%emt 0:00:24]} 44. b5+ {[%emt 0:00:37]} Kc7 {[%emt 0:01:38]} 45. Nd5+ {[%emt 0:01:03]} Kc8 {[%emt 0:00:00]} 46. Ne7+ {[%emt 0:00:00]} Kc7 {[%emt 0:00:00]} 47. b6+ {[%emt 0:00:00]} Kd7 {[%emt 0:00:00]} 48. c6+ {[%emt 0:00:00]} Ke8 1-0

[Event "GER-ch Women Open 2019"]
[Site "Bodenmais"]
[Date "2019.07.27"]
[Round "1.5"]
[White "Navarro Ortega-Villaizan, Lucia"]
[Black "Pribylova, Ruzena"]
[Result "1/2-1/2"]
[ECO "B90"]
[WhiteElo "1113"]
[BlackElo "1867"]
[Annotator "NA RC"]
[PlyCount "54"]
[EventDate "2019.07.27"]
[EventType "swiss"]
[EventCountry "GER"]
[SourceTitle "playchess.com"]
[Source "ChessBase"]
[SourceQuality "1"]
[TimeControl "40/5400+30:900+30"]

1. e4 {[%emt 0:00:00]} c5 {[%emt 0:00:00]} 2. Nf3 {[%emt 0:00:08]} d6 {[%emt 0:00:00]} 3. d4 {[%emt 0:00:27]} cxd4 {[%emt 0:00:00]} 4. Nxd4 {[%emt 0:00:34]} Nf6 {[%emt 0:00:00]} 5. Nc3 {[%emt 0:00:37]} a6 {[%emt 0:00:23]} 6. f3 {[%emt 0:02:34]} e6 {[%emt 0:00:25]} 7. Be3 {[%emt 0:01:39]} Be7 {[%emt 0:00:28]} 8. Qd2 {[%emt 0:00:50]} Qc7 {[%emt 0:01:29]} 9. O-O-O {[%emt 0:03:44]} Nc6 {[%emt 0:00:46]} 10. Nxc6 {[%emt 0:00:36]} bxc6 {[%emt 0:01:45]} 11. Na4 {[%emt 0:07:39]} c5 {[%emt 0:06:25]} 12. Bc4 {[%emt 0:06:29]} Bd7 {[%emt 0:01:55]} 13. Nc3 {[%emt 0:04:29]} Bc6 {[%emt 0:03:30]} 14. Bf4 {[%emt 0:02:54]} e5 {[%emt 0:07:51]} 15. Bg5 {[%emt 0:02:05]} O-O {[%emt 0:04:13]} 16. Bxf6 {[%emt 0:01:22]} gxf6 {[%emt 0:03:28]} 17. Bd5 {[%emt 0:01:57]} Rfd8 {[%emt 0:00:38]} 18. Bxc6 {[%emt 0:04:46]} Qxc6 {[%emt 0:00:02]} 19. Nd5 {[%emt 0:00:37]} Qb7 {[%emt 0:08:17]} 20. Qh6 {[%emt 0:07:56]} Rab8 {[%emt 0:00:37]} 21. b3 {[%emt 0:03:35]} c4 {[%emt 0:01:25]} 22. Nxf6+ {[%emt 0:05:31]} Bxf6 {[%emt 0:02:18]} 23. Qxf6 {[%emt 0:00:15]} Qb4 {[%emt 0:00:39]} 24. Qg5+ {[%emt 0:03:16]} Kf8 {[%emt 0:03:25]} 25. Qh6+ {[%emt 0:02:16]} Kg8 {[%emt 0:00:05]} 26. Qg5+ {[%emt 0:00:38]} Kf8 {[%emt 0:00:19]} 27. Qh6+ {[%emt 0:00:30]} Ke8 1/2-1/2

[Event "GER-ch Women Open 2019"]
[Site "Bodenmais"]
[Date "2019.07.27"]
[Round "1.7"]
[White "Peglau, Lorena"]
[Black "Steckmann, Kerstin"]
[Result "1/2-1/2"]
[ECO "A04"]
[WhiteElo "762"]
[BlackElo "1653"]
[Annotator "NA RC"]
[PlyCount "107"]
[EventDate "2019.07.27"]
[EventType "swiss"]
[EventCountry "GER"]
[SourceTitle "playchess.com"]
[Source "ChessBase"]
[SourceQuality "1"]
[TimeControl "40/5400+30:900+30"]

1. Nf3 {[%emt 0:11:12]} e6 {[%emt 0:00:01]} 2. d4 {[%emt 0:00:10]} d5 {[%emt 0:00:14]} 3. Bf4 {[%emt 0:00:22]} c5 {[%emt 0:01:27]} 4. dxc5 {[%emt 0:00:32]} Bxc5 {[%emt 0:00:09]} 5. e3 {[%emt 0:00:20]} Nc6 {[%emt 0:06:33]} 6. c4 {[%emt 0:00:23]} Qa5+ {[%emt 0:09:32]} 7. Qd2 {[%emt 0:00:41]} Qxd2+ {[%emt 0:12:54]} 8. Nbxd2 {[%emt 0:00:21]} Nf6 {[%emt 0:01:25]} 9. cxd5 {[%emt 0:00:11]} Nxd5 {[%emt 0:00:08]} 10. Bg3 {[%emt 0:00:33]} O-O {[%emt 0:00:34]} 11. Be2 {[%emt 0:00:20]} Rd8 {[%emt 0:02:07]} 12. O-O {[%emt 0:00:18]} Nxe3 {[%emt 0:01:27]} 13. Rfc1 {[%emt 0:00:54]} Bb6 {[%emt 0:00:49]} 14. a4 {[%emt 0:00:45]} Nf5 {[%emt 0:01:23]} 15. a5 {[%emt 0:00:54]} Bxa5 {[%emt 0:04:36]} 16. Nc4 {[%emt 0:00:42]} Nxg3 {[%emt 0:01:26]} 17. hxg3 {[%emt 0:00:11]} Bb4 {[%emt 0:05:46]} 18. Nce5 {[%emt 0:01:57]} Nd4 {[%emt 0:08:03]} 19. Nxd4 Rxd4 20. Rc7 {[%emt 0:01:52]} Bd6 {[%emt 0:01:25]} 21. Nf3 {[%emt 0:00:52]} Bxc7 {[%emt 0:01:15]} 22. Nxd4 {[%emt 0:00:19]} Be5 {[%emt 0:00:22]} 23. Rd1 {[%emt 0:00:20]} Bxd4 {[%emt 0:03:11]} 24. Rxd4 {[%emt 0:00:12]} Kf8 {[%emt 0:00:07]} 25. Rd8+ {[%emt 0:00:34]} Ke7 {[%emt 0:00:02]} 26. Rh8 {[%emt 0:00:29]} Kf6 {[%emt 0:05:33]} 27. Rxh7 {[%emt 0:00:15]} Bd7 {[%emt 0:00:18]} 28. f4 {[%emt 0:00:21]} Rc8 {[%emt 0:00:32]} 29. g4 {[%emt 0:03:57]} Rc2 {[%emt 0:01:40]} 30. g5+ {[%emt 0:00:21]} Ke7 {[%emt 0:01:52]} 31. Bf3 {[%emt 0:00:23]} Rxb2 {[%emt 0:04:14]} 32. Rxg7 {[%emt 0:00:22]} Rb4 {[%emt 0:00:43]} 33. g3 {[%emt 0:00:13]} Rb3 {[%emt 0:00:17]} 34. Kg2 {[%emt 0:00:22]} a5 {[%emt 0:03:13]} 35. g6 {[%emt 0:04:14]} Rb2+ {[%emt 0:05:42]} 36. Kh3 {[%emt 0:00:16]} e5+ {[%emt 0:03:48]} 37. Kh4 {[%emt 0:02:36]} Kf6 {[%emt 0:02:56]} 38. Rxf7+ {[%emt 0:00:38]} Kxg6 {[%emt 0:00:01]} 39. Rxd7 {[%emt 0:00:25]} Rh2+ {[%emt 0:00:10]} 40. Kg4 {[%emt 0:00:44]} exf4 {[%emt 0:01:13]} 41. gxf4 {[%emt 0:15:28]} b5 {[%emt 0:16:05]} 42. Be4+ {[%emt 0:00:34]} Kf6 {[%emt 0:00:21]} 43. Rd6+ {[%emt 0:00:20]} Ke7 {[%emt 0:00:13]} 44. Rd5 {[%emt 0:00:28]} Rb2 {[%emt 0:00:36]} 45. Re5+ {[%emt 0:00:18]} Kf6 {[%emt 0:00:49]} 46. Bc6 {[%emt 0:00:39]} a4 {[%emt 0:09:00]} 47. Bxb5 {[%emt 0:00:26]} a3 {[%emt 0:00:12]} 48. Re1 {[%emt 0:00:38]} Rxb5 {[%emt 0:00:12]} 49. Ra1 {[%emt 0:00:46]} Rb3 {[%emt 0:00:17]} 50. f5 {[%emt 0:00:33]} Rb4+ {[%emt 0:01:06]} 51. Kf3 {[%emt 0:00:27]} Ra4 {[%emt 0:00:08]} 52. Ke2 {[%emt 0:00:31]} Kxf5 {[%emt 0:00:20]} 53. Kd2 {[%emt 0:00:20]} Ke4 {[%emt 0:04:09]} 54. Ke1 1/2-1/2

[Event "GER-ch Women Open 2019"]
[Site "Bodenmais"]
[Date "2019.07.28"]
[Round "2.1"]
[White "Von Herman, Brigitte"]
[Black "Just, Anita"]
[Result "1-0"]
[ECO "C15"]
[WhiteElo "2062"]
[BlackElo "1875"]
[Annotator "NA RC"]
[PlyCount "71"]
[EventDate "2019.07.27"]
[EventType "swiss"]
[EventCountry "GER"]
[SourceTitle "playchess.com"]
[Source "ChessBase"]
[SourceQuality "1"]
[TimeControl "40/5400+30:900+30"]

1. e4 {[%emt 0:00:00]} e6 {[%emt 0:00:00]} 2. d4 {[%emt 0:00:00]} d5 {[%emt 0:00:00]} 3. Nc3 {[%emt 0:00:00]} Bb4 {[%emt 0:00:00]} 4. exd5 {[%emt 0:00:21]} exd5 {[%emt 0:00:00]} 5. Bd3 {[%emt 0:00:20]} Nc6 {[%emt 0:00:14]} 6. a3 {[%emt 0:00:18]} Bxc3+ {[%emt 0:00:07]} 7. bxc3 {[%emt 0:00:06]} Nge7 {[%emt 0:01:00]} 8. Qf3 {[%emt 0:00:28]} Be6 {[%emt 0:01:49]} 9. Rb1 {[%emt 0:02:19]} Na5 {[%emt 0:03:14]} 10. Ne2 {[%emt 0:03:06]} Qd7 {[%emt 0:03:26]} 11. O-O {[%emt 0:00:35]} O-O-O {[%emt 0:02:09]} 12. Re1 {[%emt 0:24:23]} Bf5 {[%emt 0:10:38]} 13. Bd2 {[%emt 0:11:15]} c6 {[%emt 0:09:06]} 14. Ng3 {[%emt 0:04:03]} Bg6 {[%emt 0:06:15]} 15. Rb4 {[%emt 0:05:18]} Kb8 {[%emt 0:08:32]} 16. Reb1 {[%emt 0:02:30]} Ka8 {[%emt 0:02:11]} 17. Ra4 {[%emt 0:03:07]} Nc4 {[%emt 0:10:48]} 18. Bxc4 {[%emt 0:02:00]} dxc4 {[%emt 0:00:05]} 19. Rxc4 {[%emt 0:00:16]} Bxc2 {[%emt 0:04:04]} 20. Rb2 {[%emt 0:01:07]} Bg6 {[%emt 0:02:22]} 21. Rcb4 {[%emt 0:01:45]} b6 {[%emt 0:06:20]} 22. a4 {[%emt 0:03:28]} Nd5 {[%emt 0:10:09]} 23. R4b3 {[%emt 0:01:04]} Rhe8 {[%emt 0:00:20]} 24. h3 {[%emt 0:07:31]} Re6 {[%emt 0:07:41]} 25. c4 {[%emt 0:03:07]} Nf6 {[%emt 0:01:48]} 26. Be3 {[%emt 0:00:19]} Ne4 {[%emt 0:01:20]} 27. a5 {[%emt 0:00:49]} Rf6 {[%emt 0:01:58]} 28. Qe2 {[%emt 0:06:11]} Nxg3 {[%emt 0:00:52]} 29. fxg3 {[%emt 0:00:07]} b5 {[%emt 0:05:22]} 30. cxb5 {[%emt 0:00:36]} cxb5 {[%emt 0:01:15]} 31. Rxb5 {[%emt 0:01:32]} Rf5 {[%emt 0:01:16]} 32. d5 {[%emt 0:07:37]} Re8 {[%emt 0:00:56]} 33. Qd2 {[%emt 0:01:51]} Rfe5 {[%emt 0:00:12]} 34. Bf4 {[%emt 0:00:27]} Re1+ {[%emt 0:00:36]} 35. Kh2 {[%emt 0:00:26]} a6 {[%emt 0:00:40]} 36. Rb8+ {[%emt 0:00:16]} 1-0

[Event "GER-ch Women Open 2019"]
[Site "Bodenmais"]
[Date "2019.07.28"]
[Round "2.2"]
[White "Ries, Jutta"]
[Black "Sewald, Kathrin"]
[Result "1/2-1/2"]
[ECO "A02"]
[WhiteElo "1983"]
[BlackElo "2016"]
[Annotator "NA RC"]
[PlyCount "84"]
[EventDate "2019.07.27"]
[EventType "swiss"]
[EventCountry "GER"]
[SourceTitle "playchess.com"]
[Source "ChessBase"]
[SourceQuality "1"]
[TimeControl "40/5400+30:900+30"]

1. f4 {[%emt 0:00:00]} Nh6 {[%emt 0:00:00]} 2. Nf3 {[%emt 0:00:24]} g6 {[%emt 0:00:05]} 3. Nc3 {[%emt 0:00:52]} d5 {[%emt 0:00:21]} 4. e3 {[%emt 0:00:10]} Bg7 {[%emt 0:00:05]} 5. b3 {[%emt 0:01:48]} O-O {[%emt 0:00:07]} 6. Bb2 {[%emt 0:00:20]} c5 {[%emt 0:00:31]} 7. Na4 {[%emt 0:07:32]} d4 {[%emt 0:02:41]} 8. Nxc5 {[%emt 0:05:52]} dxe3 {[%emt 0:04:58]} 9. Bxg7 {[%emt 0:01:17]} Kxg7 {[%emt 0:00:05]} 10. Nd3 {[%emt 0:02:40]} exd2+ {[%emt 0:02:50]} 11. Qxd2 {[%emt 0:00:33]} Nc6 {[%emt 0:01:58]} 12. Rd1 {[%emt 0:05:58]} Qb6 {[%emt 0:02:09]} 13. Qc3+ {[%emt 0:52:22]} f6 {[%emt 0:00:21]} 14. Qc5 {[%emt 0:03:20]} Qxc5 {[%emt 0:05:03]} 15. Nxc5 {[%emt 0:00:01]} Ng4 {[%emt 0:13:00]} 16. Nd4 {[%emt 0:13:29]} Nxd4 17. Rxd4 {[%emt 0:00:02]} e5 {[%emt 0:02:41]} 18. fxe5 {[%emt 0:00:31]} fxe5 {[%emt 0:00:14]} 19. Rd2 {[%emt 0:00:01]} b6 {[%emt 0:09:50]} 20. Ne4 {[%emt 0:00:59]} Bf5 {[%emt 0:01:42]} 21. Bd3 {[%emt 0:01:16]} Rad8 {[%emt 0:03:19]} 22. Re2 {[%emt 0:00:31]} Rd4 {[%emt 0:03:35]} 23. Rf1 {[%emt 0:00:55]} Nxh2 {[%emt 0:01:05]} 24. Rh1 {[%emt 0:00:00]} Bxe4 {[%emt 0:06:14]} 25. Bxe4 {[%emt 0:01:00]} Ng4 {[%emt 0:02:07]} 26. c3 {[%emt 0:00:33]} Rxe4 {[%emt 0:03:22]} 27. Rxe4 {[%emt 0:00:01]} Nf2 {[%emt 0:00:05]} 28. Reh4 {[%emt 0:00:28]} Nxh1 {[%emt 0:00:17]} 29. Rxh1 {[%emt 0:00:02]} h5 {[%emt 0:02:56]} 30. Ke2 {[%emt 0:00:10]} Rd8 {[%emt 0:05:40]} 31. Rf1 {[%emt 0:00:12]} Rd7 {[%emt 0:04:16]} 32. Ke3 {[%emt 0:00:03]} Kh6 {[%emt 0:00:33]} 33. Rf2 {[%emt 0:00:22]} Kg5 {[%emt 0:00:39]} 34. Ke4 {[%emt 0:00:08]} Re7 {[%emt 0:00:24]} 35. Rf3 {[%emt 0:00:56]} Kg4 {[%emt 0:04:18]} 36. c4 {[%emt 0:01:05]} h4 {[%emt 0:01:30]} 37. b4 {[%emt 0:01:26]} Rd7 {[%emt 0:07:45]} 38. Rc3 {[%emt 0:01:06]} Rd4+ {[%emt 0:05:12]} 39. Kxe5 {[%emt 0:00:30]} Rd2 {[%emt 0:00:06]} 40. c5 {[%emt 0:00:13]} bxc5 {[%emt 0:02:37]} 41. bxc5 {[%emt 0:15:49]} Rxg2 {[%emt 0:17:07]} 42. c6 {[%emt 0:00:00]} Rxa2 {[%emt 0:00:00]} 1/2-1/2